[Event "Early-Titled-Tuesday-Blitz-October-24-2023"]
[Site "Chess.com"]
[Date "2023.10.24"]
[Round "4"]
[White "rikchessmx"]
[Black "kingapolak"]
[Result "0-1"]
[WhiteElo "2277"]
[BlackElo "2138"]
[TimeControl "180+1"]
[EndTime "8:36:31 PDT"]
[Termination "kingapolak won by resignation"]

1. e4 {[%clk 0:03:00.9]} 1... c5 {[%clk 0:02:55.4]} 2. Nf3 {[%clk 0:03:00.2]}
2... Nc6 {[%clk 0:02:55]} 3. d4 {[%clk 0:02:48.7]} 3... cxd4 {[%clk 0:02:55.1]}
4. Nxd4 {[%clk 0:02:49.6]} 4... g6 {[%clk 0:02:55.3]} 5. Nxc6 {[%clk 0:02:48.3]}
5... bxc6 {[%clk 0:02:54.8]} 6. Qd4 {[%clk 0:02:48.9]} 6... Nf6 {[%clk
0:02:52.7]} 7. e5 {[%clk 0:02:49.4]} 7... Ng8 {[%clk 0:02:47.7]} 8. e6 {[%clk
0:02:47.3]} 8... f6 {[%clk 0:02:47.7]} 9. Qc4 {[%clk 0:02:41.7]} 9... Bg7 {[%clk
0:02:34.7]} 10. Nc3 {[%clk 0:02:40.8]} 10... dxe6 {[%clk 0:02:09.2]} 11. Qxc6+
{[%clk 0:02:40]} 11... Bd7 {[%clk 0:02:08.8]} 12. Qa6 {[%clk 0:02:34.5]} 12...
Nh6 {[%clk 0:02:05.2]} 13. Bc4 {[%clk 0:02:29]} 13... Qb6 {[%clk 0:01:53]} 14.
Qa3 {[%clk 0:02:23.2]} 14... Nf5 {[%clk 0:01:48.4]} 15. Bd3 {[%clk 0:02:05.2]}
15... O-O {[%clk 0:01:39]} 16. O-O {[%clk 0:02:02.5]} 16... Nd6 {[%clk 0:01:32]}
17. Be3 {[%clk 0:02:01.4]} 17... Qb7 {[%clk 0:01:30.7]} 18. Rfd1 {[%clk
0:01:54.7]} 18... Bc6 {[%clk 0:01:30.5]} 19. Bf1 {[%clk 0:01:54.3]} 19... Nf5
{[%clk 0:01:28.1]} 20. Bc5 {[%clk 0:01:52.2]} 20... Rf7 {[%clk 0:01:14.8]} 21.
Rd2 {[%clk 0:01:47.7]} 21... Bh6 {[%clk 0:01:12.4]} 22. Rd3 {[%clk 0:01:42.1]}
22... Bf4 {[%clk 0:01:08.8]} 23. Rad1 {[%clk 0:01:40.5]} 23... Bd6 {[%clk
0:01:08.3]} 24. b3 {[%clk 0:01:32.5]} 24... h5 {[%clk 0:00:59.5]} 25. R3d2
{[%clk 0:01:03.8]} 25... h4 {[%clk 0:00:55.8]} 26. h3 {[%clk 0:00:51.8]} 26...
Rc8 {[%clk 0:00:46.4]} 27. Bd4 {[%clk 0:00:29.2]} 27... Bxa3 {[%clk 0:00:44.6]}
0-1

[Event "Early-Titled-Tuesday-Blitz-October-24-2023"]
[Site "Chess.com"]
[Date "2023.10.24"]
[Round "4"]
[White "IlyaGrigorjev"]
[Black "Yeremyan_ChessMate"]
[Result "0-1"]
[WhiteElo "2927"]
[BlackElo "2781"]
[TimeControl "180+1"]
[EndTime "8:36:32 PDT"]
[Termination "Yeremyan_ChessMate won by checkmate"]

1. e4 {[%clk 0:03:00.9]} 1... c5 {[%clk 0:02:59.5]} 2. Nf3 {[%clk 0:03:01.4]}
2... Nc6 {[%clk 0:03:00.1]} 3. b4 {[%clk 0:03:00.9]} 3... e5 {[%clk 0:02:57.4]}
4. b5 {[%clk 0:02:58.7]} 4... Nd4 {[%clk 0:02:57.8]} 5. Nc3 {[%clk 0:02:34.8]}
5... d6 {[%clk 0:02:53.7]} 6. h3 {[%clk 0:02:34.3]} 6... Be6 {[%clk 0:02:53.4]}
7. Nd5 {[%clk 0:02:27]} 7... Nf6 {[%clk 0:02:53.3]} 8. c3 {[%clk 0:02:22.7]}
8... Nxf3+ {[%clk 0:02:46.6]} 9. Qxf3 {[%clk 0:02:23.6]} 9... Bxd5 {[%clk
0:02:47.1]} 10. exd5 {[%clk 0:02:24.5]} 10... g6 {[%clk 0:02:47.4]} 11. Bc4
{[%clk 0:01:59.5]} 11... Bg7 {[%clk 0:02:47.3]} 12. O-O {[%clk 0:02:00.2]} 12...
O-O {[%clk 0:02:48]} 13. d3 {[%clk 0:02:00.8]} 13... h6 {[%clk 0:02:47.6]} 14.
Re1 {[%clk 0:01:58.4]} 14... Nd7 {[%clk 0:02:42.7]} 15. a4 {[%clk 0:01:57.6]}
15... f5 {[%clk 0:02:42.5]} 16. a5 {[%clk 0:01:57.1]} 16... Kh7 {[%clk
0:02:42.3]} 17. Qd1 {[%clk 0:01:52.7]} 17... Qh4 {[%clk 0:02:32.4]} 18. Ra2
{[%clk 0:01:36.9]} 18... Rf7 {[%clk 0:02:28.9]} 19. Kh2 {[%clk 0:01:37.1]} 19...
Raf8 {[%clk 0:02:28.6]} 20. g3 {[%clk 0:01:35.7]} 20... Qd8 {[%clk 0:02:28.7]}
21. f4 {[%clk 0:01:20.9]} 21... Nf6 {[%clk 0:02:23.6]} 22. Kg2 {[%clk
0:01:11.7]} 22... exf4 {[%clk 0:02:23.3]} 23. Bxf4 {[%clk 0:01:11.5]} 23... Nh5
{[%clk 0:02:23]} 24. Qd2 {[%clk 0:00:45.3]} 24... g5 {[%clk 0:02:17.2]} 25. Be3
{[%clk 0:00:45.7]} 25... f4 {[%clk 0:02:16.4]} 26. gxf4 {[%clk 0:00:42.9]} 26...
Nxf4+ {[%clk 0:02:13.1]} 27. Bxf4 {[%clk 0:00:40.7]} 27... Rxf4 {[%clk
0:02:13.8]} 28. d4 {[%clk 0:00:41]} 28... cxd4 {[%clk 0:02:11.9]} 29. cxd4
{[%clk 0:00:32.6]} 29... g4 {[%clk 0:02:12.1]} 30. Qd3+ {[%clk 0:00:28.3]} 30...
Kh8 {[%clk 0:02:11.9]} 31. Re4 {[%clk 0:00:19.1]} 31... gxh3+ {[%clk 0:02:08.7]}
32. Kh2 {[%clk 0:00:19.7]} 32... Rf3 {[%clk 0:01:55.3]} 33. Re3 {[%clk
0:00:17.4]} 33... R3f4 {[%clk 0:01:42.5]} 34. Re4 {[%clk 0:00:17.5]} 34... Qg5
{[%clk 0:01:42.7]} 35. Rxf4 {[%clk 0:00:13.4]} 35... Qxf4+ {[%clk 0:01:43.4]}
36. Kh1 {[%clk 0:00:07.7]} 36... Bxd4 {[%clk 0:01:39.7]} 37. Qxh3 {[%clk
0:00:04.6]} 37... Qc1+ {[%clk 0:01:37.9]} 38. Kh2 {[%clk 0:00:03.3]} 38... Qg1#
{[%clk 0:01:37.8]} 0-1

[Event "Early-Titled-Tuesday-Blitz-October-24-2023"]
[Site "Chess.com"]
[Date "2023.10.24"]
[Round "4"]
[White "artin10862"]
[Black "M1711"]
[Result "1-0"]
[WhiteElo "2873"]
[BlackElo "2563"]
[TimeControl "180+1"]
[EndTime "8:36:34 PDT"]
[Termination "artin10862 won by resignation"]

1. e4 {[%clk 0:02:56.2]} 1... e5 {[%clk 0:02:57.6]} 2. Nf3 {[%clk 0:02:56.3]}
2... d5 {[%clk 0:02:57.2]} 3. Nxe5 {[%clk 0:02:35]} 3... Bd6 {[%clk 0:02:53.6]}
4. d4 {[%clk 0:02:33.8]} 4... dxe4 {[%clk 0:02:53.6]} 5. Bc4 {[%clk 0:02:33.2]}
5... Bxe5 {[%clk 0:02:52.8]} 6. Qh5 {[%clk 0:02:32.5]} 6... Qe7 {[%clk 0:02:50]}
7. dxe5 {[%clk 0:02:25.8]} 7... g6 {[%clk 0:02:17.6]} 8. Qe2 {[%clk 0:02:23.6]}
8... Qxe5 {[%clk 0:02:04.8]} 9. Nc3 {[%clk 0:02:22.9]} 9... Nf6 {[%clk
0:01:37.8]} 10. f3 {[%clk 0:02:19.3]} 10... Nc6 {[%clk 0:01:34.9]} 11. fxe4
{[%clk 0:02:19]} 11... Bg4 {[%clk 0:01:33.7]} 12. Qf2 {[%clk 0:02:18.8]} 12...
O-O-O {[%clk 0:01:25.6]} 13. O-O {[%clk 0:02:09.6]} 13... Nxe4 {[%clk
0:01:20.8]} 14. Nxe4 {[%clk 0:02:09.4]} 14... Qxe4 {[%clk 0:01:21]} 15. Bd3
{[%clk 0:02:08.1]} 15... Qe7 {[%clk 0:01:09]} 16. Qg3 {[%clk 0:02:02.1]} 16...
f5 {[%clk 0:01:08.4]} 17. h3 {[%clk 0:02:01.5]} 17... Bh5 {[%clk 0:01:04.8]} 18.
Bg5 {[%clk 0:02:01]} 18... Qc5+ {[%clk 0:01:04.1]} 19. Kh1 {[%clk 0:02:01.7]}
19... Rde8 {[%clk 0:01:02]} 20. Rae1 {[%clk 0:01:57]} 20... Ne5 {[%clk
0:00:54.1]} 21. Bf4 {[%clk 0:01:56.1]} 21... Nxd3 {[%clk 0:00:52.9]} 22. cxd3
{[%clk 0:01:57]} 22... Be2 {[%clk 0:00:46.4]} 23. Rc1 {[%clk 0:01:56.5]} 23...
Qxc1 {[%clk 0:00:17.4]} 24. Rxc1 {[%clk 0:01:55.7]} 24... c6 {[%clk 0:00:18]}
25. Bb8 {[%clk 0:01:53.6]} 25... Re7 {[%clk 0:00:18.2]} 26. Bxa7 {[%clk
0:01:54.2]} 26... Rd8 {[%clk 0:00:13.8]} 27. Qb8+ {[%clk 0:01:50.4]} 27... Kd7
{[%clk 0:00:14]} 28. Qxb7+ {[%clk 0:01:51.3]} 28... Ke8 {[%clk 0:00:14.7]} 29.
Qxc6+ {[%clk 0:01:52.2]} 29... Kf7 {[%clk 0:00:14.9]} 30. Bc5 {[%clk 0:01:51]}
30... Red7 {[%clk 0:00:14.3]} 31. Bb6 {[%clk 0:01:51.5]} 31... Rd6 {[%clk
0:00:09.9]} 32. Qc3 {[%clk 0:01:51.2]} 32... R8d7 {[%clk 0:00:09.9]} 33. Bc5
{[%clk 0:01:50.4]} 33... Rxd3 {[%clk 0:00:09.5]} 34. Qc4+ {[%clk 0:01:50.6]}
34... Kf6 {[%clk 0:00:10]} 35. Qa6+ {[%clk 0:01:47.9]} 35... Kg5 {[%clk
0:00:08.9]} 36. Qa8 {[%clk 0:01:45.8]} 36... f4 {[%clk 0:00:06.2]} 37. Bf2
{[%clk 0:01:44.3]} 37... f3 {[%clk 0:00:06.2]} 38. Qa5+ {[%clk 0:01:44.1]} 38...
Kf6 {[%clk 0:00:03.1]} 39. Rc6+ {[%clk 0:01:43.2]} 39... Kf7 {[%clk 0:00:03]}
40. Qe5 {[%clk 0:01:43]} 40... fxg2+ {[%clk 0:00:03.4]} 41. Kh2 {[%clk
0:01:42.7]} 41... Rf3 {[%clk 0:00:01.9]} 42. Qe6+ {[%clk 0:01:41.8]} 42... Kg7
{[%clk 0:00:02.2]} 1-0

[Event "Early-Titled-Tuesday-Blitz-October-24-2023"]
[Site "Chess.com"]
[Date "2023.10.24"]
[Round "4"]
[White "rezamahdavi2008"]
[Black "Harry_Rakkel"]
[Result "1-0"]
[WhiteElo "2887"]
[BlackElo "2702"]
[TimeControl "180+1"]
[EndTime "8:36:36 PDT"]
[Termination "rezamahdavi2008 won by resignation"]

1. Nf3 {[%clk 0:03:00.9]} 1... Nf6 {[%clk 0:02:56.4]} 2. c4 {[%clk 0:02:58.4]}
2... c6 {[%clk 0:02:55]} 3. g3 {[%clk 0:02:58.1]} 3... d5 {[%clk 0:02:54.7]} 4.
Bg2 {[%clk 0:02:58.9]} 4... dxc4 {[%clk 0:02:53.5]} 5. O-O {[%clk 0:02:50.9]}
5... Nbd7 {[%clk 0:02:52.1]} 6. Qc2 {[%clk 0:02:49.7]} 6... Nb6 {[%clk
0:02:51.7]} 7. Rd1 {[%clk 0:02:50]} 7... Be6 {[%clk 0:02:41.3]} 8. b3 {[%clk
0:02:47.2]} 8... cxb3 {[%clk 0:02:40.1]} 9. axb3 {[%clk 0:02:48.1]} 9... Bd5
{[%clk 0:02:21.1]} 10. Nc3 {[%clk 0:02:45.2]} 10... Bxf3 {[%clk 0:02:20.3]} 11.
Bxf3 {[%clk 0:02:46.1]} 11... e6 {[%clk 0:02:20.2]} 12. d4 {[%clk 0:02:46.9]}
12... Be7 {[%clk 0:02:19.3]} 13. e4 {[%clk 0:02:47.5]} 13... O-O {[%clk
0:02:19.1]} 14. Ne2 {[%clk 0:02:44.5]} 14... Bb4 {[%clk 0:02:13.2]} 15. Nf4
{[%clk 0:02:42]} 15... a5 {[%clk 0:02:06.8]} 16. Nd3 {[%clk 0:02:42.3]} 16...
Qe7 {[%clk 0:02:06.3]} 17. Be3 {[%clk 0:02:29.2]} 17... Nfd7 {[%clk 0:02:02.8]}
18. Ra2 {[%clk 0:02:02.8]} 18... Rfc8 {[%clk 0:01:46]} 19. Rda1 {[%clk 0:01:35]}
19... h6 {[%clk 0:01:38.2]} 20. h4 {[%clk 0:01:30]} 20... c5 {[%clk 0:01:27.1]}
21. dxc5 {[%clk 0:01:30.9]} 21... Bxc5 {[%clk 0:01:21]} 22. Nxc5 {[%clk
0:01:30.5]} 22... Nxc5 {[%clk 0:01:19.8]} 23. Rxa5 {[%clk 0:01:31.2]} 23... Rxa5
{[%clk 0:01:15.6]} 24. Rxa5 {[%clk 0:01:32.1]} 24... Na6 {[%clk 0:01:05]} 25.
Qd2 {[%clk 0:01:25.5]} 25... Nd7 {[%clk 0:01:02.9]} 26. Rb5 {[%clk 0:01:25.9]}
26... Nf6 {[%clk 0:00:53.4]} 27. e5 {[%clk 0:01:22.6]} 27... Nd5 {[%clk
0:00:45.8]} 28. Bxd5 {[%clk 0:01:23.2]} 28... exd5 {[%clk 0:00:44.5]} 29. Qxd5
{[%clk 0:01:24.1]} 29... Nc7 {[%clk 0:00:36.8]} 30. Qxb7 {[%clk 0:01:23.8]}
30... Qd7 {[%clk 0:00:34.8]} 31. Rc5 {[%clk 0:01:22.5]} 31... Ra8 {[%clk
0:00:21]} 32. Rxc7 {[%clk 0:01:10.7]} 32... Ra1+ {[%clk 0:00:18.2]} 33. Kh2
{[%clk 0:01:10.1]} 33... Qd1 {[%clk 0:00:16.6]} 34. Qc8+ {[%clk 0:01:10.2]} 1-0

[Event "Early-Titled-Tuesday-Blitz-October-24-2023"]
[Site "Chess.com"]
[Date "2023.10.24"]
[Round "4"]
[White "aranibos"]
[Black "Ind1anStar"]
[Result "0-1"]
[WhiteElo "2288"]
[BlackElo "2498"]
[TimeControl "180+1"]
[EndTime "8:36:39 PDT"]
[Termination "Ind1anStar won by resignation"]

1. d4 {[%clk 0:03:00.9]} 1... Nf6 {[%clk 0:02:59.6]} 2. Nf3 {[%clk 0:02:59.7]}
2... e6 {[%clk 0:02:54]} 3. Bg5 {[%clk 0:02:59.8]} 3... d5 {[%clk 0:02:53.7]} 4.
Nbd2 {[%clk 0:02:59.8]} 4... Be7 {[%clk 0:02:53.4]} 5. e3 {[%clk 0:03:00.2]}
5... O-O {[%clk 0:02:53.3]} 6. c3 {[%clk 0:03:00.2]} 6... c5 {[%clk 0:02:53.7]}
7. Bd3 {[%clk 0:03:00.3]} 7... Nc6 {[%clk 0:02:52.5]} 8. Bxf6 {[%clk 0:02:53.3]}
8... Bxf6 {[%clk 0:02:52.5]} 9. dxc5 {[%clk 0:02:54]} 9... Qe7 {[%clk 0:02:44]}
10. Nb3 {[%clk 0:02:44]} 10... e5 {[%clk 0:02:40]} 11. e4 {[%clk 0:02:44.3]}
11... dxe4 {[%clk 0:02:37.5]} 12. Bxe4 {[%clk 0:02:43.8]} 12... Be6 {[%clk
0:02:37.4]} 13. O-O {[%clk 0:02:35.1]} 13... Rad8 {[%clk 0:02:37.1]} 14. Qc2
{[%clk 0:02:31.4]} 14... g6 {[%clk 0:02:37.5]} 15. Bxc6 {[%clk 0:02:17.3]} 15...
bxc6 {[%clk 0:02:37.6]} 16. Nfd2 {[%clk 0:02:17.5]} 16... Bg7 {[%clk 0:02:22.7]}
17. Ne4 {[%clk 0:02:14.8]} 17... Bc4 {[%clk 0:02:13.1]} 18. Rfe1 {[%clk
0:02:14.2]} 18... Bd3 {[%clk 0:02:12.2]} 19. Qc1 {[%clk 0:02:11.1]} 19... f5
{[%clk 0:02:03.7]} 20. Nd6 {[%clk 0:02:09.8]} 20... e4 {[%clk 0:02:03.5]} 21. g3
{[%clk 0:01:54.8]} 21... f4 {[%clk 0:01:35.5]} 22. gxf4 {[%clk 0:01:47.7]} 22...
Qh4 {[%clk 0:01:24.9]} 23. Qe3 {[%clk 0:01:46.2]} 23... Rxf4 {[%clk 0:01:22.5]}
24. Nd2 {[%clk 0:01:19.5]} 24... Be5 {[%clk 0:01:16.1]} 25. N2xe4 {[%clk
0:00:58.9]} 25... Rxe4 {[%clk 0:00:57.2]} 0-1

[Event "Early-Titled-Tuesday-Blitz-October-24-2023"]
[Site "Chess.com"]
[Date "2023.10.24"]
[Round "4"]
[White "GlavkonVVS"]
[Black "jk13"]
[Result "1-0"]
[WhiteElo "2525"]
[BlackElo "2675"]
[TimeControl "180+1"]
[EndTime "8:36:43 PDT"]
[Termination "GlavkonVVS won by checkmate"]

1. c4 {[%clk 0:03:00.9]} 1... e6 {[%clk 0:02:56.6]} 2. Nc3 {[%clk 0:03:00.2]}
2... Bb4 {[%clk 0:02:56.6]} 3. g3 {[%clk 0:02:56.9]} 3... Nf6 {[%clk 0:02:55.8]}
4. Bg2 {[%clk 0:02:57.3]} 4... O-O {[%clk 0:02:56.5]} 5. Nf3 {[%clk 0:02:57.3]}
5... d5 {[%clk 0:02:56.9]} 6. O-O {[%clk 0:02:57.3]} 6... Re8 {[%clk 0:02:56.2]}
7. d4 {[%clk 0:02:52.7]} 7... b6 {[%clk 0:02:50.5]} 8. Ne5 {[%clk 0:02:47.5]}
8... Bb7 {[%clk 0:02:50.7]} 9. Qa4 {[%clk 0:02:40.6]} 9... Bd6 {[%clk
0:02:42.7]} 10. Bg5 {[%clk 0:02:32.4]} 10... c6 {[%clk 0:02:37.2]} 11. cxd5
{[%clk 0:02:27.4]} 11... cxd5 {[%clk 0:02:28.7]} 12. e4 {[%clk 0:02:11.5]} 12...
h6 {[%clk 0:01:18.8]} 13. Bxf6 {[%clk 0:01:54.8]} 13... gxf6 {[%clk 0:01:19.7]}
14. Ng4 {[%clk 0:01:49.7]} 14... Bc6 {[%clk 0:01:04.1]} 15. Qd1 {[%clk
0:01:30.5]} 15... f5 {[%clk 0:01:00.1]} 16. exf5 {[%clk 0:01:27.3]} 16... Qg5
{[%clk 0:00:56.9]} 17. fxe6 {[%clk 0:01:24.1]} 17... fxe6 {[%clk 0:00:56.4]} 18.
f4 {[%clk 0:01:16]} 18... Qg7 {[%clk 0:00:56.6]} 19. Ne5 {[%clk 0:01:12.1]}
19... Bb7 {[%clk 0:00:54.1]} 20. Qh5 {[%clk 0:01:05.8]} 20... Nc6 {[%clk
0:00:50]} 21. Rad1 {[%clk 0:00:58.9]} 21... Ne7 {[%clk 0:00:46.8]} 22. Bh3
{[%clk 0:00:56.6]} 22... Nf5 {[%clk 0:00:41.1]} 23. Bxf5 {[%clk 0:00:55.3]}
23... exf5 {[%clk 0:00:42]} 24. Qxf5 {[%clk 0:00:55.3]} 24... Bc8 {[%clk
0:00:42.1]} 25. Qh5 {[%clk 0:00:50.7]} 25... Bxe5 {[%clk 0:00:39.8]} 26. Qxe8+
{[%clk 0:00:50.3]} 26... Kh7 {[%clk 0:00:39.2]} 27. Qxe5 {[%clk 0:00:50.5]}
27... Qg6 {[%clk 0:00:37.5]} 28. f5 {[%clk 0:00:50.4]} 28... Qg5 {[%clk
0:00:35.3]} 29. Nxd5 {[%clk 0:00:49.8]} 29... Ba6 {[%clk 0:00:33.9]} 30. h4
{[%clk 0:00:47.3]} 30... Qd8 {[%clk 0:00:30.3]} 31. Nf6+ {[%clk 0:00:42.5]}
31... Kh8 {[%clk 0:00:30.1]} 32. Nh5+ {[%clk 0:00:40.1]} 32... Kg8 {[%clk
0:00:30.8]} 33. Qg7# {[%clk 0:00:39.5]} 1-0

[Event "Early-Titled-Tuesday-Blitz-October-24-2023"]
[Site "Chess.com"]
[Date "2023.10.24"]
[Round "4"]
[White "suspiciumchess"]
[Black "Payyappat"]
[Result "0-1"]
[WhiteElo "2298"]
[BlackElo "2501"]
[TimeControl "180+1"]
[EndTime "8:36:47 PDT"]
[Termination "Payyappat won on time"]

1. d4 {[%clk 0:03:00.9]} 1... Nf6 {[%clk 0:02:55.8]} 2. c4 {[%clk 0:03:00.3]}
2... c5 {[%clk 0:02:54.2]} 3. d5 {[%clk 0:03:00.1]} 3... e6 {[%clk 0:02:54.2]}
4. Nc3 {[%clk 0:02:59.1]} 4... exd5 {[%clk 0:02:55.1]} 5. cxd5 {[%clk
0:02:59.7]} 5... d6 {[%clk 0:02:56]} 6. Nf3 {[%clk 0:02:59.1]} 6... g6 {[%clk
0:02:56.9]} 7. Nd2 {[%clk 0:02:59]} 7... Bg7 {[%clk 0:02:57.7]} 8. e4 {[%clk
0:02:59]} 8... O-O {[%clk 0:02:58.5]} 9. Be2 {[%clk 0:02:58.4]} 9... Re8 {[%clk
0:02:58.9]} 10. O-O {[%clk 0:02:56.1]} 10... Nbd7 {[%clk 0:02:58.7]} 11. a4
{[%clk 0:02:55.6]} 11... a6 {[%clk 0:02:58.5]} 12. Re1 {[%clk 0:02:51.6]} 12...
Ne5 {[%clk 0:02:49.1]} 13. h3 {[%clk 0:02:45.5]} 13... Rb8 {[%clk 0:02:48.3]}
14. Qc2 {[%clk 0:02:33.7]} 14... Nh5 {[%clk 0:02:38.2]} 15. Bxh5 {[%clk
0:02:29.7]} 15... gxh5 {[%clk 0:02:35.1]} 16. f4 {[%clk 0:02:29.1]} 16... Ng6
{[%clk 0:02:34.2]} 17. Nf3 {[%clk 0:02:19.8]} 17... Qf6 {[%clk 0:02:26.9]} 18.
f5 {[%clk 0:01:28.6]} 18... Ne5 {[%clk 0:02:24.6]} 19. Kh1 {[%clk 0:01:03.3]}
19... Nxf3 {[%clk 0:02:20.3]} 20. gxf3 {[%clk 0:01:04.2]} 20... Bxf5 {[%clk
0:02:19.6]} 21. Qg2 {[%clk 0:00:33.8]} 21... Bg6 {[%clk 0:02:13.4]} 22. Bg5
{[%clk 0:00:30.5]} 22... Qd4 {[%clk 0:02:04.2]} 23. Rad1 {[%clk 0:00:28.6]}
23... Qb4 {[%clk 0:02:01.9]} 24. f4 {[%clk 0:00:25.2]} 24... f5 {[%clk
0:02:00.5]} 25. exf5 {[%clk 0:00:22.5]} 25... Bxf5 {[%clk 0:01:59.8]} 26. Bf6
{[%clk 0:00:20.5]} 26... Bg6 {[%clk 0:01:47.9]} 27. Bxg7 {[%clk 0:00:19.6]}
27... Kxg7 {[%clk 0:01:47.6]} 28. f5 {[%clk 0:00:20]} 28... Rxe1+ {[%clk
0:01:46.6]} 29. Rxe1 {[%clk 0:00:20.9]} 29... Qh4 {[%clk 0:01:46.6]} 30. fxg6
{[%clk 0:00:20.8]} 30... Qxe1+ {[%clk 0:01:46]} 31. Kh2 {[%clk 0:00:21.7]} 31...
Rf8 {[%clk 0:01:41.5]} 32. gxh7+ {[%clk 0:00:19.9]} 32... Kxh7 {[%clk
0:01:42.4]} 33. Ne4 {[%clk 0:00:20.6]} 33... Rf4 {[%clk 0:01:39.4]} 34. Ng5+
{[%clk 0:00:12.5]} 34... Kh6 {[%clk 0:01:38.4]} 35. Nf3 {[%clk 0:00:12.7]} 35...
Qe7 {[%clk 0:01:33.2]} 36. Qf2 {[%clk 0:00:01.6]} 36... Qe4 {[%clk 0:01:27.2]}
0-1

[Event "Early-Titled-Tuesday-Blitz-October-24-2023"]
[Site "Chess.com"]
[Date "2023.10.24"]
[Round "4"]
[White "AlmasRakhmatullaev"]
[Black "FairChess_on_YouTube"]
[Result "0-1"]
[WhiteElo "2824"]
[BlackElo "3097"]
[TimeControl "180+1"]
[EndTime "8:36:50 PDT"]
[Termination "FairChess_on_YouTube won by resignation"]

1. e4 {[%clk 0:03:00.9]} 1... c5 {[%clk 0:02:54]} 2. Nf3 {[%clk 0:02:59.9]} 2...
g6 {[%clk 0:02:53.9]} 3. g3 {[%clk 0:02:55.6]} 3... Bg7 {[%clk 0:02:52.9]} 4.
Bg2 {[%clk 0:02:56.3]} 4... Nc6 {[%clk 0:02:52.9]} 5. O-O {[%clk 0:02:56.4]}
5... e5 {[%clk 0:02:53.2]} 6. c3 {[%clk 0:02:54.9]} 6... Nge7 {[%clk 0:02:53]}
7. Na3 {[%clk 0:02:55]} 7... O-O {[%clk 0:02:52.4]} 8. d3 {[%clk 0:02:51.8]}
8... d5 {[%clk 0:02:48.8]} 9. Qe2 {[%clk 0:02:49.5]} 9... h6 {[%clk 0:02:44.4]}
10. h3 {[%clk 0:02:48.4]} 10... Re8 {[%clk 0:02:40.6]} 11. Rd1 {[%clk
0:02:47.3]} 11... Be6 {[%clk 0:02:40.3]} 12. Be3 {[%clk 0:02:44.4]} 12... b6
{[%clk 0:02:38.9]} 13. Nc2 {[%clk 0:02:34.6]} 13... Qd7 {[%clk 0:02:38.3]} 14.
Kh2 {[%clk 0:02:33.8]} 14... Rad8 {[%clk 0:02:37.8]} 15. a3 {[%clk 0:02:10.7]}
15... Qc7 {[%clk 0:02:26.3]} 16. b4 {[%clk 0:01:55.1]} 16... c4 {[%clk
0:02:25.9]} 17. exd5 {[%clk 0:01:27.3]} 17... Nxd5 {[%clk 0:02:07.5]} 18. Qe1
{[%clk 0:01:07]} 18... cxd3 {[%clk 0:02:04.6]} 19. Rxd3 {[%clk 0:01:07.9]} 19...
e4 {[%clk 0:02:03.7]} 20. Rxd5 {[%clk 0:01:08.6]} 20... Bxd5 {[%clk 0:01:55]}
21. Nfd4 {[%clk 0:01:08.4]} 21... Ne5 {[%clk 0:01:54.5]} 22. Bf4 {[%clk
0:01:07.5]} 22... Qc8 {[%clk 0:01:45.6]} 23. Bxe5 {[%clk 0:01:06.9]} 23... Bxe5
{[%clk 0:01:46.5]} 24. Ne3 {[%clk 0:01:04]} 24... Bb7 {[%clk 0:01:44.5]} 25. Rd1
{[%clk 0:01:01.6]} 25... Bg7 {[%clk 0:01:44.6]} 26. h4 {[%clk 0:00:54.4]} 26...
h5 {[%clk 0:01:43.3]} 27. Nb5 {[%clk 0:00:51.6]} 27... Rxd1 {[%clk 0:01:41.4]}
28. Qxd1 {[%clk 0:00:52.1]} 28... Rd8 {[%clk 0:01:40.2]} 29. Qc2 {[%clk
0:00:52.3]} 29... a6 {[%clk 0:01:38.7]} 30. Nd4 {[%clk 0:00:43.2]} 30... Bxd4
{[%clk 0:01:38.3]} 31. cxd4 {[%clk 0:00:44.1]} 31... Qxc2 {[%clk 0:01:37.7]} 32.
Nxc2 {[%clk 0:00:45]} 32... Kf8 {[%clk 0:01:22.7]} 33. Kg1 {[%clk 0:00:42]}
33... Ke7 {[%clk 0:01:21.5]} 34. Kf1 {[%clk 0:00:42.2]} 34... Rc8 {[%clk
0:01:22.1]} 35. Ne3 {[%clk 0:00:42.1]} 35... Rc3 {[%clk 0:01:20.7]} 36. a4
{[%clk 0:00:42]} 36... Ra3 {[%clk 0:01:17.7]} 37. d5 {[%clk 0:00:41.7]} 37...
Rxa4 {[%clk 0:01:15.7]} 38. Bxe4 {[%clk 0:00:41.9]} 38... Bc8 {[%clk 0:01:12]}
39. Nc4 {[%clk 0:00:33.3]} 39... Rxb4 {[%clk 0:01:10.1]} 40. d6+ {[%clk
0:00:33.7]} 40... Ke6 {[%clk 0:01:02.7]} 0-1